Cogmind - Beta 13 *** ADVENTURER MODE // 2024.05.27 @ 09:13:25 Player: oatmeal Result: Destroyed by EO-U6F(R) with Subdweller Beam Cannon Performance ------------- Evolutions (0) 0 Regions Visited (3) 600 Robots Destroyed (27) 135 Value Destroyed (581) 581 Prototype IDs (4) 80 Alien Tech Used (0) 0 Bonus (0) 0 TOTAL SCORE: 1396 Bonus ------- None Cogmind --------- Core Integrity 0/250 Matter 234/300 Energy 51/100 System Corruption 3% Temperature Cool (9) Movement Treading (240) Ox1 Location -10/Subcaves Parts ------- > --- POWER (1) -------- (None) > --- PROPULSION (2) --- Improved Treads > --- UTILITY (2) ------ High-capacity Storage Unit Core Shielding > --- WEAPON (2) ------- Beam Cannon Makeshift Spear > --- INVENTORY (20) --- Subdweller Power Source Light Deuterium Engine Wheel Large Battery (200) High-capacity Matter Pod (200) Weight Redist. System Terrain Scanner Terrain Scan Processor Targeting Computer Propulsion Shielding Scrap Shield Tractor Beam Riot Gun Shotgun Rocket Launcher Mining Laser Peak State ------------ > --- POWER ------------ Makeshift Power Source > --- PROPULSION ------- Improved Treads Wheel > --- UTILITY ---------- Improved Heat Sink High-capacity Storage Unit > --- WEAPON ----------- Beam Cannon Battle Cannon > --- INVENTORY -------- Subdweller Power Source Light Deuterium Engine Improved Treads Wheel Large Battery High-capacity Matter Pod Weight Redist. System Terrain Scanner Terrain Scan Processor Targeting Computer Core Shielding Propulsion Shielding Scrap Shield Tractor Beam Riot Gun Shotgun Rocket Launcher Mining Laser Makeshift Spear [Rating: 17] Favorites ----------- Power Makeshift Power Source Engine Makeshift Power Source Power Core Light Nuclear Core Propulsion Wheel Treads Improved Treads Wheel Wheel Utility Improved Heat Sink Device Improved Heat Sink Storage High-capacity Storage Unit Protection Core Shielding Weapon Light Cannon Energy Gun Medium Laser Energy Cannon Beam Cannon Ballistic Gun Shotgun Ballistic Cannon Light Cannon Launcher Rocket Launcher Piercing Weapon Makeshift Spear Build | -11 -10 -10 -10 ------- Run | Yrd Mat Min Sub Slots Evolved . | . . . . Power . | . . . . Propulsion . | . . . . Utility . | . . . . Weapon . | . . . . Parts Attached 29 | 9 11 4 5 Power 4 | 2 1 1 . Engine 3 | 2 . 1 . Core 1 | . 1 . . Reactor . | . . . . Propulsion 9 | 3 2 3 1 Treads 3 | 1 1 . 1 Leg . | . . . . Wheel 6 | 2 1 3 . Hover . | . . . . Flight . | . . . . Utility 6 | 2 3 . 1 Device 2 | 1 1 . . Storage 3 | 1 2 . . Processor . | . . . . Hackware . | . . . . Protection 1 | . . . 1 Artifact . | . . . . Weapon 10 | 2 5 . 3 Energy Gun 3 | 1 2 . . Energy Cannon 1 | . 1 . . Ballistic Gun 2 | 1 1 . . Ballistic Cannon 2 | . 1 . 1 Launcher 1 | . . . 1 Special Weapon . | . . . . Impact Weapon . | . . . . Slashing Weapon . | . . . . Piercing Weapon 1 | . . . 1 Special Melee Weapon . | . . . . Unidentified Prototypes . | . . . . Parts Lost 6 | . 1 . 5 Power 1 | . . . 1 Propulsion 2 | . . . 2 Utility 2 | . 1 . 1 Weapon 1 | . . . 1 Highest Loss Streak 5 | . 1 . 5 To Critical Strikes . | . . . . Average Slot Usage (%) 99 | . 99 100 98 Engine 8 | . 6 10 13 Core 5 | . 7 3 . Treads 14 | . 14 14 14 Wheel 13 | . 14 14 13 Device 13 | . 13 14 13 Storage 14 | . 14 14 14 Energy Gun 3 | . 9 . . Energy Cannon 9 | . 4 14 14 Ballistic Gun 3 | . 8 . . Ballistic Cannon 10 | . 5 14 13 Naked Turns . | . . . . Heaviest Build 52 | 14 52 52 51 Greatest Support 26 | 26 23 10 10 Greatest Overweight (x) 16 | 1 5 5 16 Average Overweight (x) 4 | . 3 5 5 Largest Inventory Capacity 20 | 8 20 20 20 Average Capacity 17 | 6 15 20 20 Most Carried 20 | 8 20 20 20 Average Carried 17 | 5 14 19 19 Final Capacity 20 | 8 20 20 20 Final Carried 20 | 8 20 20 17 Class Distribution -------------------- 100% | Mutant Dominant Class ---------------- Mutant | -10/Materials Mutant | -10/Mines Mutant | -10/Subcaves Resources | -11 -10 -10 -10 ----------- Run | Yrd Mat Min Sub Matter Collected 799 | 302 209 258 30 Remotely . | . . . . Salvage Created 802 | 117 377 168 140 Parts 53 | 5 34 10 4 Haulers Intercepted 1 | . 1 . . Recyclers Shooed . | . . . . Parts Field Recycled . | . . . . Retrieved Matter . | . . . . Parts Self-Destructed 4 | . . . 4 Prevented . | . . . . Kills | -11 -10 -10 -10 ------- Run | Yrd Mat Min Sub Combat Hostiles Destroyed 23 | . 7 12 4 Guns 6 | . 6 . . Cannons 12 | . . 10 2 AOE 4 | . . 2 2 Classes Destroyed 10 | 2 6 1 1 Worker 1 | . 1 . . Builder 2 | . 2 . . Tunneler 3 | 2 . 1 . Hauler 1 | . 1 . . Recycler 1 | 1 . . . Watcher 3 | . 3 . . Swarmer 6 | . 3 3 . Grunt 6 | . 4 2 . Subdweller 4 | . . . 4 Assembled 7 | . . 7 . Best Kill Streak 4 | 3 4 4 3 Combat Bots Only 4 | . 4 4 3 Max Kills in Single Turn 2 | 1 2 2 2 Gunslinging . | . . . . Exploded 2 | . . 2 2 Melee . | . . . . Uniques/NPCs Destroyed . | . . . . Combat | -11 -10 -10 -10 -------- Run | Yrd Mat Min Sub Hostile Shots Fired 101 | . 41 14 46 Missed 15 | . 8 1 6 Damage Taken 1216 | . 306 172 738 Core 264 | . 84 12 168 Absorbed by Shields . | . . . . Redirected to Shielding 23 | . . . 23 Ignored by Resistances 344 | . 89 49 206 Regen/Repaired (Parts) 46 | . 46 . . Core Remaining (%) 100 | 100 . . . Volleys Fired 68 | 4 30 18 16 Largest 2 | 2 2 2 2 Hottest 99 | 60 85 95 99 Shots Fired 129 | 8 62 35 24 Gun 68 | 8 60 . . Cannon 60 | . 2 35 23 Launcher 1 | . . . 1 Special . | . . . . Kinetic 64 | 4 32 18 10 Thermal 64 | 4 30 17 13 Explosive 1 | . . . 1 Electromagnetic . | . . . . Robot Hit Streak 20 | 4 20 7 13 Robot Miss Streak 2 | 1 2 1 1 Penetration Max . | . . . . Secondary Targets 1 | . 1 . . Max Gunslinging Chain 1 | . 1 . . Shots Hit Robots 95 | 4 45 23 23 Core Hits 53 | 4 24 17 8 Critical Kills . | . . . . Critical Parts Destroyed . | . . . . Critical Strikes 5 | . 3 1 1 Burn 3 | . 3 . . Blast 1 | . . 1 . Impale 1 | . . . 1 Melee Attacks 2 | . . . 2 Impact . | . . . . Slashing . | . . . . Piercing 2 | . . . 2 Sneak Attacks . | . . . . Combat Hostiles . | . . . . Follow-up Attacks . | . . . . Damage Inflicted 1836 | 45 644 507 640 Guns 659 | 45 614 . . Cannons 805 | . 17 426 362 Explosions 306 | . . 81 225 Melee 53 | . . . 53 Ramming 13 | . 13 . . Kinetic 704 | 13 341 178 172 Thermal 841 | 32 290 329 190 Explosive 225 | . . . 225 Electromagnetic . | . . . . Impact . | . . . . Slashing . | . . . . Piercing 53 | . . . 53 Highest Corruption 3 | . 3 3 3 Average Corruption 2 | . 2 3 3 Corruption Purged . | . . . . Corruption Blocked . | . . . . Effects 50 | . 16 31 3 Message Errors 11 | . 2 9 . Matter Fused 9 | . 1 7 1 Heat Flow Errors 8 | . 2 6 . Energy Discharges 10 | . 5 5 . Data Loss (minor) 7 | . 4 1 2 Data Loss (major) 2 | . . 2 . Misfires 2 | . 2 . . Weapon Failures 1 | . . 1 . Overload Shots . | . . . . Overflow Damage 2 | . 2 . . Projectiles 2 | . 2 . . Explosions . | . . . . Melee . | . . . . Knockbacks 10 | . 1 2 7 Impact . | . . . . Kinetic 9 | . 1 2 6 Secondary 1 | . . . 1 Self-Inflicted Damage 53 | . 6 42 5 Shots 3 | . . 2 1 Rammed 3 | . 3 . . Targets Rammed 3 | . 3 . . Kicked . | . . . . Crushed . | . . . . Highest Temperature 279 | . 279 258 249 Average Temperature 105 | . 122 79 139 Received Heat Transfer 648 | . 162 . 486 Effects 1 | . 1 . . Interference 1 | . 1 . . Siege Activations . | . . . . Robots Corrupted . | . . . . Combat Hostiles . | . . . . Parts Fried . | . . . . Impact Corruptions . | . . . . Robots Melted 1 | . 1 . . Combat Hostiles 1 | . 1 . . Parts Melted 8 | . 5 1 2 Heat Transferred 2173 | 75 1073 618 407 Parts Sabotaged . | . . . . Parts Stolen . | . . . . Parts Stripped . | . . . . Power Chain Reactions . | . . . . Alert | -11 -10 -10 -10 ------- Run | Yrd Mat Min Sub Peak Influence 205 | 15 205 91 . Initial 8 | . 8 1 . Average 50 | 5 75 31 . Maximum Alert Level 1 | . 1 . . Low Security (%) 96 | 100 91 100 . Level 1 3 | . 8 . . Level 2 . | . . . . Level 3 . | . . . . Level 4 . | . . . . Level 5 . | . . . . High Security . | . . . . Max Security . | . . . . Squads Dispatched . | . . . . Investigation . | . . . . Extermination . | . . . . Reinforcement . | . . . . Assault . | . . . . Garrison . | . . . . Intercept . | . . . . Searches Triggered . | . . . . Construction Impeded . | . . . . Haulers Reinforced . | . . . . Active Scanning Responses . | . . . . Cargo Convoy Interrupts . | . . . . Stealth | -11 -10 -10 -10 --------- Run | Yrd Mat Min Sub Distress Signals 1 | . 1 . . Communications Jammed . | . . . . Distress Signals . | . . . . Times Spotted 46 | . 18 20 8 Peak Tracking Total 8 | . 5 8 7 Tactical Retreats 6 | . 3 3 . Traps | -11 -10 -10 -10 ------- Run | Yrd Mat Min Sub Traps Triggered 3 | . 3 . . Indirectly . | . . . . Trap Hack Attempts . | . . . . Triggered . | . . . . Disarmed . | . . . . Reprogrammed . | . . . . Reused . | . . . . Traps Extracted . | . . . . Installed . | . . . . Triggered . | . . . . Machines | -11 -10 -10 -10 ---------- Run | Yrd Mat Min Sub Machines Disabled 3 | . . 3 . Max in Single Turn 3 | . . 3 . Machines Repaired . | . . . . Machines Dismantled . | . . . . Machines Sabotaged . | . . . . Overloaded Fab Kills . | . . . . Hacking | -11 -10 -10 -10 --------- Run | Yrd Mat Min Sub Machines Accessed 10 | . 10 . . Terminals 7 | . 7 . . Fabricators . | . . . . Repair Stations 1 | . 1 . . Recycling Units 2 | . 2 . . Scanalyzers . | . . . . Garrison Access . | . . . . Total Hacks 26 | . 26 . . Successful 17 | . 17 . . Failed 8 | . 8 . . Catastrophic 1 | . 1 . . Database Lockouts 1 | . 1 . . Manual 17 | . 17 . . Terminals 22 | . 22 . . Fabricators . | . . . . Repair Stations 2 | . 2 . . Recycling Units 2 | . 2 . . Scanalyzers . | . . . . Garrison Access . | . . . . Terminal Hacks 13 | . 13 . . Part Schematic 2 | . 2 . . Robot Analysis 3 | . 3 . . Prototype ID Bank 2 | . 2 . . Branch Access Points 1 | . 1 . . Dispatch Records 1 | . 1 . . Security Status 1 | . 1 . . Surveillance Status 1 | . 1 . . Patrol Status 1 | . 1 . . Transport Status 1 | . 1 . . Fabricator Hacks . | . . . . Repair Station Hacks 2 | . 2 . . Scan Component 1 | . 1 . . Repair 1 | . 1 . . Recycling Unit Hacks 2 | . 2 . . Retrieve Components 2 | . 2 . . Scanalyzer . | . . . . Garrison Access Hacks . | . . . . Unauthorized Hacks . | . . . . Terminals . | . . . . Fabricators . | . . . . Repair Stations . | . . . . Recycling Units . | . . . . Scanalyzers . | . . . . Garrison Access . | . . . . Data Cores Recovered . | . . . . Used . | . . . . Hacking Detections 5 | . 5 . . Full Trace Events . | . . . . Feedback Events . | . . . . Feedback Blocked . | . . . . Robot Schematics Acquired . | . . . . Robots Built . | . . . . Authchips . | . . . . Time . | . . . . Total Robot Build Rating . | . . . . Part Schematics Acquired 2 | . 2 . . Parts Built . | . . . . Authchips . | . . . . Time . | . . . . Total Part Build Rating . | . . . . Parts Repaired 1 | . 1 . . Time 26 | . 26 . . Parts Recycled . | . . . . Recycled Matter . | . . . . Retrieved Matter . | . . . . Retrieved Components 9 | . 9 . . Parts Scanalyzed . | . . . . Part Schematics Acquired . | . . . . Parts Damaged . | . . . . Bothacking | -11 -10 -10 -10 ------------ Run | Yrd Mat Min Sub Used RIF Installer . | . . . . Robots Hacked . | . . . . Non-combat . | . . . . Combat . | . . . . Robot Hacks Applied . | . . . . Relay Couplers Released . | . . . . Fabnet Peak Effective % . | . . . . Robots Rewired . | . . . . Allies Hacked . | . . . . Hacks Repelled . | . . . . Allies | -11 -10 -10 -10 -------- Run | Yrd Mat Min Sub Total Allies 2 | . . 2 . Largest Group 2 | . . 2 . Highest-Rated Group 52 | . . 52 . Highest-Rated Ally 31 | . . 31 . Total Orders . | . . . . Ally Attacks 4 | . . 4 . Total Damage 65 | . . 65 . Kills 3 | . . 3 . Allies Corrupted . | . . . . Allies Melted . | . . . . Intel | -11 -10 -10 -10 ------- Run | Yrd Mat Min Sub Robot Analysis Total 3 | . 3 . . Derelict Logs Recovered 1 | . . 1 . Drone Launches . | . . . . Drone Recoveries . | . . . . Exploration | -11 -10 -10 -10 ------------- Run | Yrd Mat Min Sub Turns Passed 3445 | 91 1409 1639 306 Spaces Moved 2005 | 63 841 990 111 Core 11 | 1 . . 10 Treads 61 | . 61 . . Legs . | . . . . Wheels 1933 | 62 780 990 101 Hover . | . . . . Flight . | . . . . Fastest Speed 50 | 50 95 155 155 Average Speed 149 | 88 137 155 217 Slowest Speed 850 | 100 240 155 850 Overloaded Moves . | . . . . Propulsion Burnouts . | . . . . Robots Hopped . | . . . . Cave-ins Triggered . | . . . . Exploration Rate (%) 52 | 4 97 99 11 Regions Visited 3 Branch Regions 2 Pre-discovered Areas 1 | . . 1 . Known Exits Taken 1 | . 1 . . Unknown Exits Taken 2 | 1 . 1 . Scrap Searched 6 | . . 3 3 Spaces Dug . | . . . . Terrain Destroyed 10 | . . 8 2 Melee . | . . . . Projectile . | . . . . AOE 10 | . . 8 2 Terrain Rammed . | . . . . Walls Destroyed . | . . . . Machines Disabled . | . . . . Actions | -11 -10 -10 -10 --------- Run | Yrd Mat Min Sub Total 2348 | 86 1040 1068 154 Wait 154 | . 110 33 11 Move 2002 | 62 840 989 111 Hop . | . . . . Pick Up 50 | 9 26 11 4 Fast Attach 11 | 8 3 . . Attach 4 | . 1 . 3 Detach . | . . . . Swap 14 | 1 7 4 2 Drop 40 | 2 20 13 5 Fire 68 | 4 30 18 16 Melee 2 | . . . 2 Ram 3 | . 3 . . Kick . | . . . . Crush . | . . . . Escape Stasis . | . . . . Rewire . | . . . . Trap . | . . . . Miscellaneous . | . . . . Route ------- -11/Scrapyard -10/Materials (discovered 5 exits: [*Mat x3] / *Min x2) -10/Mines (discovered 3 exits: [*Mat x2] / [*Sub]) -10/Subcaves History --------- Turn | Location | Event 25 | -11/Scrapyard | Discovered new exit (range 16) 92 | -11/Scrapyard | Entered Materials 305 | -10/Materials | Build established: Mutant 474 | -10/Materials | Repaired Med. Laser 512 | -10/Materials | Central database locked down 589 | -10/Materials | Identified exit to Mines 789 | -10/Materials | Discovered new exit (range 8) 1026 | -10/Materials | Discovered new exit (range 15) 1293 | -10/Materials | Discovered new exit (range 15) 1501 | -10/Materials | Entered Mines 1801 | -10/Mines | Assembled infested the area 1806 | -10/Mines | Assisted by a Guerilla fighting off Assembled 1833 | -10/Mines | Discovered new exit (range 5) 1870 | -10/Mines | Lost 3 allies 2134 | -10/Mines | Learned location of Storage (-8) 2185 | -10/Mines | Discovered new exit (range 4) 2315 | -10/Mines | Discovered new exit (range 10) 3140 | -10/Mines | Entered Subcaves 3355 | -10/Subcaves | Disturbed a concealed Subdweller 3393 | -10/Subcaves | Ambushed by swarm of Subdwellers 3425 | -10/Subcaves | Core integrity fell below 50% 3442 | -10/Subcaves | Core integrity fell below 20% 3445 | -10/Subcaves | Lost 4 allies 3446 | -10/Subcaves | Destroyed by EO-U6F(R) with Subdweller Beam Cannon Last Messages --------------- 03414_ GL-7NW(g) destroyed. 03416_ System corrupted: Component data lost. 03421_ EO-U6F(R) knocked back. 03421_ Mak. Power Source destroyed. 03424_ B8-6GI(R) knocked back. 03427_ B8-6GI(R) destroyed. 03430_ 50-XOH(R) knocked back. 03432_ Imp. Heat Sink destroyed. 03432_ Imp. Treads destroyed. 03432_ Critical hit (Meltdown: +240). 03435_ 50-XOH(R) knocked back. 03437_ Battle Cannon destroyed. 03438_ Wheel destroyed. 03440_ 9B-DYQ(R) destroyed. 03440_ Sub. Optics melted. 03440_ Sub. Monowheel melted. 03440_ 1T-QLX(R) destroyed. 03442_ EO-U6F(R) affixes Scrap Shield Fragment to Scrap Shield. 03443_ EO-U6F(R) suffers critical hit (Impale). Map ----- +----------------------------------------------------+ | ?????????????????????????????????????????????????? | | ?????????????????????????????????????????????????? | | ?????????????????????????????????????????????????? | | ?????????????????????????????????????????????????? | | ?????????????????????????????????????????????????? | | ?????????????????????????????????????????????????? | | ?????????????????????????????????????????????????? | | ?????????????????????????????????????????????????? | | ?????????????????????????????????????????????????? | | ?????????????????????????????????????????????????? | | ?????????????????????????????????????????????????? | | ????????????????????????????? ?? ????????????????? | | ????????????????????????????? ? ????????????????? | | ???????????????????????????? ?%?????????????????? | | ???????????????????????????? # *?????????????????? | | ???????????????????????????? # ??????????????????? | | ???????????????????????????? ?????? ???????????? | | ???????????????????????????# ????## ???????????? | | ?????????????????????????## #??## ????????????? | | ?????????????????????????# ?? ??????????????? | | ?????????????????????????# #?# #???????????????? | | ????????????????????????## ## #???????????????? | | ???????????????????????## #???????????????? | | ???????????????????????# #????????????????? | | ???????????????????????# R #??####???????????? | | ??????????????????###??##@ R= #?# ##??? ??????? | | ??????????????????#%#???##R%%% ## #? ??????? | | ??????????????????#%###### &[[* #?# ?????? | | ?????????????????##%["## ## ?????? | | ?????????????????#"%#[# # #??????? | | ?????????????????# [#]& !# #??????? | | ?????????????????#*"# # = ### ???? | | ?????????????????#%####% ??? | | ?????????????????###??# ! [%= ???? | | ??????????????????????# !%*! ## ?????? | | ??????????????????????## % =%%[ ##? #??????? | | ???????????????????????# ## ##?# ##?????? | | ???????????????????????## ""## ### #?????? | | ????????????????????????## " ## #???????????? | | ?????????????????????????# "### * ##???????????? | | ?????????????????????????# ?## ##???????????? | | ?????????????????????????## ??# ##??????????? | | ??????????????????????????# ##?# ##?????????? | | ??????????????????????????####?## #????###??? | | ???????????????????????????# ### #???## #??? | | ??????????????????????????## ## ##??## ###? | | ??????????????????????????# ##??## ## | | ????????????????????????# % ## ###### % # | | ???????????????????????# ???????## ## | | ????????????????????????????????## | +----------------------------------------------------+ Best States ------------- Heat Dissipation 39 Energy Generation 15 Energy Capacity 250 Matter Stores 300 Matter Capacity 300 Sight Range 16 Terrain Scan Range 16 Terrain Scan Density 10 Resistance: KI 20 Resistance: TH 20 Resistance: EX 20 Resistance: EM 20 Resistance: I 20 Resistance: S 20 Resistance: P 20 Core Shielding 20 Evasion (%) 44 Recoil Reduction 1 Offensive Hacking 10 Item Schematics ----------------- Weapon Shielding | -10/Materials | Hacked Utility Shielding | -10/Materials | Hacked Robot Schematics ------------------ None Fabricated ------------ Nothing Alien Tech Used ----------------- None Achievements -------------- I Survived The Infestation Challenges ------------ None Game ------ Seed MiniLinkedArray Manual? 0 Play Time 00:32:49 Cumulative 18.1 hours Start 2024.05.27 @ 08:31:05 End 2024.05.27 @ 09:13:25 Sessions 1 Manual Loads 0 Difficulty Adventurer Special Mode None Game No. 9 Rogue 0 Adventurer 9 Explorer 0 Win Type - Total 0 Types 0/0/0/0/0/0/0/0/0 Lore% 20 Gallery% 27 Achievement% 23 Wizard Run 0 Options --------- Layout 2 ASCII 0 Keyboard 0 Movement Numpad Keybinds 0 Fullscreen 2 Font 16/SmallcapsGlow Map View 55x47 Zoom Use 0% Tactical HUD 1 Map Filters NONE Filters NONE Steam 0 RUN: 3b8e2475-0083-4827-9fa9-f7ca52b82efb